bitfinex/quotes_BTCUSD_20250515
["timestamp","ask_amount","ask_price","bid_price","bid_amount"]
[1747306984689,0.77487572,101910.0,101900.0,0.27107196]
[1747306984896,0.77487572,101910.0,101900.0,0.05517413]
[1747306985106,0.76506343,101910.0,101900.0,0.05517413]
[1747306985959,0.76806343,101910.0,101900.0,0.05517413]
[1747306986168,0.76786343,101910.0,101900.0,0.05517413]
[1747306986369,0.77086343,101910.0,101900.0,0.05517413]
[1747306987072,0.77086343,101910.0,101900.0,0.00613642]
[1747306989541,1.05359693,101910.0,101900.0,0.00613642]
[1747306990076,1.05343693,101910.0,101900.0,0.00613642]
[1747306990283,0.77070343,101910.0,101900.0,0.00613642]
[1747306990485,0.22573246,101890.0,101880.0,0.58846662]
[1747306990689,0.22573246,101890.0,101880.0,0.86138485]
[1747306990889,0.22573246,101890.0,101880.0,0.85156948]
[1747306990890,0.21591863,101890.0,101880.0,0.85156948]
[1747306991094,0.2251039,101890.0,101880.0,0.85770292]
[1747306991312,0.2251039,101890.0,101880.0,0.37866075]
[1747306991620,0.55181918,101890.0,101880.0,0.02884529]
[1747306991815,0.55181918,101890.0,101880.0,0.00626971]
[1747306991816,1.04259268,101890.0,101880.0,0.00626971]
[1747306992023,0.81985918,101890.0,101880.0,0.00626971]
[1747306992669,0.81985918,101890.0,101880.0,0.00726971]
[1747306992868,0.86795918,101890.0,101880.0,0.00826971]
[1747306993046,0.85877391,101890.0,101880.0,0.00826971]
[1747306994284,0.85877391,101890.0,101880.0,0.00213627]
[1747306995887,0.85877391,101890.0,101880.0,0.50080827]
[1747306996094,0.85877391,101890.0,101880.0,0.5508891]
[1747306996295,0.86389852,101890.0,101880.0,0.5508891]
[1747306997306,0.86389852,101890.0,101880.0,0.50080827]
[1747307002861,0.91988852,101890.0,101880.0,0.50080827]
[1747307003066,1.14363202,101890.0,101880.0,0.50080827]
[1747307004909,0.86089852,101890.0,101880.0,0.50080827]
[1747307006331,0.44893852,101890.0,101880.0,0.50080827]
[1747307006546,0.63851852,101890.0,101880.0,0.59811767]
[1747307006746,0.84479852,101890.0,101880.0,0.59811767]
[1747307007552,0.62291852,101890.0,101880.0,0.88085117]
[1747307007902,0.53542324,101890.0,101880.0,1.1259522]
[1747307008104,0.28807664,101890.0,101880.0,1.16153102]
[1747307008323,0.42645206,101890.0,101880.0,1.17134581]
[1747307008524,0.44095625,101890.0,101880.0,0.85916765]
[1747307008751,0.23467625,101890.0,101880.0,1.15171633]
[1747307008872,0.22573274,101890.0,101880.0,1.16153122]
[1747307009079,0.22573274,101890.0,101880.0,1.1517175]
[1747307009898,0.22573274,101890.0,101880.0,1.16153829]
[1747307010312,0.22573274,101890.0,101880.0,0.87880479]
[1747307010519,0.22573274,101890.0,101880.0,1.16153829]
[1747307010916,0.22573274,101890.0,101880.0,1.17135337]
[1747307011614,0.02944263,101890.0,101880.0,1.18116816]
[1747307011830,0.60820815,101900.0,101890.0,0.22699011]
[1747307011831,0.41192,101900.0,101890.0,0.22699011]
[1747307012056,0.62781764,101900.0,101890.0,0.63647536]
[1747307012273,0.64744424,101900.0,101890.0,0.62666153]
[1747307012472,0.63763118,101900.0,101890.0,0.62985854]
[1747307012889,0.44180327,101900.0,101890.0,0.63967266]
[1747307013508,0.42317744,101900.0,101890.0,0.34712504]
[1747307013774,0.41336429,101900.0,101890.0,0.34712504]
[1747307014006,0.41436429,101900.0,101890.0,0.34712504]
[1747307014715,0.41436429,101900.0,101890.0,0.34712514]
[1747307015166,0.41436429,101900.0,101890.0,0.35693954]
[1747307015611,0.41436429,101900.0,101890.0,0.14102053]
[1747307015866,0.40455085,101900.0,101890.0,0.34193935]
[1747307016106,0.002,101900.0,101890.0,0.6597007]
[1747307016348,0.03143927,101900.0,101890.0,0.6597007]
[1747307017022,0.04125271,101900.0,101890.0,0.6597007]
[1747307017292,0.2473371,101900.0,101890.0,0.6597007]
[1747307017518,0.22771118,101900.0,101890.0,0.35733935]
[1747307017712,0.22771118,101900.0,101890.0,0.64007285]
[1747307017978,0.22771118,101900.0,101890.0,0.64988697]
[1747307019423,0.22771118,101900.0,101890.0,0.11032053]
[1747307019424,0.20808439,101900.0,101890.0,0.11032053]
[1747307019656,0.33769379,101900.0,101890.0,0.11032053]
[1747307020106,0.32199379,101900.0,101890.0,0.11032053]
[1747307020308,0.30539379,101900.0,101890.0,0.11032053]
[1747307020731,0.20808439,101900.0,101890.0,0.39305403]
[1747307020961,0.20808381,101900.0,101890.0,0.64067266]
[1747307021194,0.002,101900.0,101890.0,0.99048678]
[1747307021427,0.03143927,101900.0,101890.0,1.00030061]
[1747307021845,0.23752356,101900.0,101890.0,0.99048678]
[1747307022056,0.23752356,101900.0,101890.0,1.0003008]
[1747307022255,0.23652356,101900.0,101890.0,1.0003008]
[1747307022472,0.23552356,101900.0,101890.0,0.97085845]
[1747307022673,0.2257107,101900.0,101890.0,0.98367285]
[1747307022872,0.2257107,101900.0,101890.0,0.96504414]
[1747307022873,0.21589764,101900.0,101890.0,0.96504414]
[1747307023081,0.21589764,101900.0,101890.0,0.69212514]
[1747307023319,0.21589764,101900.0,101890.0,0.98467304]
[1747307023532,0.21589764,101900.0,101890.0,0.99448735]
[1747307023741,0.20608429,101900.0,101890.0,0.76775403]
[1747307023976,0.20608429,101900.0,101890.0,0.97685854]
[1747307024317,0.20608429,101900.0,101890.0,0.98667285]
[1747307024727,0.20608429,101900.0,101890.0,0.97685864]
[1747307024930,0.20608429,101900.0,101890.0,0.98667304]
[1747307025942,0.20608429,101900.0,101890.0,0.99648735]
[1747307026568,0.20608429,101900.0,101890.0,0.98667304]
[1747307027475,0.20608429,101900.0,101890.0,0.99648735]
[1747307028137,0.20608429,101900.0,101890.0,1.00630156]
[1747307031681,0.20608429,101900.0,101890.0,0.73338218]
[1747307031935,0.20608429,101900.0,101890.0,1.00630156]
[1747307032161,0.20608429,101900.0,101890.0,0.98667304]
[1747307032355,0.20608429,101900.0,101890.0,0.97147304]
[1747307032597,0.20608429,101900.0,101890.0,0.98128735]
[1747307033231,0.20608429,101900.0,101890.0,0.99110156]
[1747307033911,0.20608429,101900.0,101890.0,0.97147304]
[1747307034112,0.20608429,101900.0,101890.0,0.98128735]
[1747307034315,0.20608429,101900.0,101890.0,0.99110156]
[1747307035058,0.20608429,101900.0,101890.0,0.9911005]
[1747307036951,0.2535264,101910.0,101890.0,0.9775572]
[1747307037173,0.25416416,101910.0,101900.0,0.48881789]
[1747307037378,0.24435159,101910.0,101900.0,0.54606212]
[1747307037579,0.24435159,101910.0,101900.0,0.54312613]
[1747307037782,0.24435159,101910.0,101900.0,0.3529879]
[1747307038114,0.19625159,101910.0,101900.0,0.55907229]
[1747307038320,0.19625159,101910.0,101900.0,0.3529879]
[1747307038528,0.19625159,101910.0,101900.0,0.57527219]
[1747307038744,0.20606397,101910.0,101900.0,0.58508554]
[1747307038944,0.20606397,101910.0,101900.0,0.57527219]
[1747307039146,0.21525037,101910.0,101900.0,0.57527219]
[1747307039358,0.20543799,101910.0,101900.0,0.3691879]
[1747307039584,0.20543799,101910.0,101900.0,0.0874544]
[1747307039783,0.20543799,101910.0,101900.0,0.3549879]
[1747307039995,0.20543799,101910.0,101900.0,0.0722544]
[1747307040550,0.22063799,101910.0,101900.0,0.0722544]
[1747307040961,0.23613799,101910.0,101900.0,0.0722544]
[1747307041393,0.33344739,101910.0,101900.0,0.01501007]
[1747307041609,0.61618089,101910.0,101900.0,0.01501007]
[1747307041826,0.33344739,101910.0,101900.0,0.00813262]
[1747307042241,0.33344739,101910.0,101900.0,0.48692282]
[1747307042242,0.05951039,101910.0,101900.0,0.48692282]
[1747307042448,0.22748612,101910.0,101900.0,0.29065197]
[1747307042656,0.22506256,101910.0,101900.0,0.34979877]
[1747307042858,0.22506256,101910.0,101900.0,0.35668616]
[1747307043084,0.22506256,101910.0,101900.0,0.07416681]
[1747307043289,0.35327196,101910.0,101900.0,0.01502001]
[1747307043497,0.76435196,101910.0,101900.0,0.01502001]
[1747307043902,0.76435196,101910.0,101900.0,0.00813262]
[1747307044855,0.55879196,101910.0,101900.0,0.00813262]
[1747307045062,0.35327196,101910.0,101900.0,0.00813262]
[1747307045498,0.76995196,101910.0,101900.0,0.00813262]
[1747307045914,1.22111135,101910.0,101900.0,0.00813262]
[1747307046126,1.22111135,101910.0,101900.0,0.002]
[1747307046361,1.28111135,101910.0,101900.0,0.002]
[1747307046571,0.58781844,101890.0,101880.0,0.00013627]
[1747307046785,1.4179646,101890.0,101880.0,0.00013627]
[1747307046938,1.37720869,101890.0,101880.0,0.00013627]
[1747307049319,1.37920869,101890.0,101880.0,0.00013627]
[1747307049732,1.37820869,101890.0,101880.0,0.00013627]
[1747307049938,1.38120869,101890.0,101880.0,0.00113627]
[1747307050382,1.47851809,101890.0,101880.0,0.00113627]
[1747307051020,2.17461809,101890.0,101880.0,0.00113627]
[1747307052074,2.38465809,101890.0,101880.0,0.00113627]
[1747307052671,1.96905809,101890.0,101880.0,0.00113627]
[1747307052874,2.38465809,101890.0,101880.0,0.00113627]
[1747307053681,2.38465809,101890.0,101880.0,0.49990527]
[1747307054279,2.38978298,101890.0,101880.0,0.49990527]
[1747307056532,2.67257575,101890.0,101880.0,0.49990527]
[1747307057316,2.68257575,101890.0,101880.0,0.49990527]
[1747307057514,2.96536852,101890.0,101880.0,0.49990527]
[1747307057944,2.28226852,101890.0,101880.0,0.49990527]
[1747307058741,2.27926852,101890.0,101880.0,0.49990527]
[1747307059160,2.27526852,101890.0,101880.0,0.49890527]
[1747307059434,2.27526852,101890.0,101880.0,0.49990527]
[1747307059632,2.28126852,101890.0,101880.0,0.49990527]
[1747307060172,2.28526852,101890.0,101880.0,0.49990527]
[1747307060655,2.28126852,101890.0,101880.0,0.49990527]
[1747307061092,2.28626852,101890.0,101880.0,0.50090527]
[1747307061537,2.28826852,101890.0,101880.0,0.50090527]
[1747307061754,1.87066852,101890.0,101880.0,0.50090527]
[1747307061970,1.99547575,101890.0,101880.0,0.50090527]
[1747307062183,2.00539575,101890.0,101880.0,0.50090527]
[1747307062354,1.58787575,101890.0,101880.0,0.50090527]
[1747307062511,2.00539575,101890.0,101880.0,0.50090527]
[1747307063140,2.06430575,101890.0,101880.0,0.50090527]
[1747307064466,2.06402575,101890.0,101880.0,0.50090527]
[1747307065347,2.06410575,101890.0,101880.0,0.50090527]
[1747307065997,2.05410575,101890.0,101880.0,0.50090527]
[1747307066204,1.64678575,101890.0,101880.0,0.50090527]
[1747307066378,2.06474575,101890.0,101880.0,0.50090527]
[1747307066728,2.05474575,101890.0,101880.0,0.50090527]
[1747307067157,2.04474575,101890.0,101880.0,0.50090527]
[1747307067566,2.05474575,101890.0,101880.0,0.50090527]
[1747307067761,2.06474575,101890.0,101880.0,0.50090527]
[1747307067972,1.98547575,101890.0,101880.0,0.50090527]
[1747307068198,0.37745273,101890.0,101880.0,0.81629804]
[1747307068408,0.33916646,101890.0,101880.0,0.81629804]
[1747307068578,0.31953871,101890.0,101880.0,0.81629804]
[1747307068819,0.31953871,101890.0,101880.0,0.82243176]
[1747307068996,0.31953871,101890.0,101880.0,0.62973339]
[1747307069177,0.30853871,101890.0,101880.0,0.62773339]
[1747307069608,0.51841871,101890.0,101880.0,0.63173339]
[1747307070212,0.51841871,101890.0,101880.0,0.91452616]
[1747307070415,0.51841871,101890.0,101880.0,0.63173339]
[1747307072101,0.30953871,101890.0,101880.0,0.63173339]
[1747307072306,0.51841871,101890.0,101880.0,0.63173339]
[1747307072708,0.00612489,101890.0,101880.0,1.47046599]
[1747307072918,0.21691766,101890.0,101880.0,1.74344368]
[1747307073116,0.22673236,101890.0,101880.0,0.97173339]
[1747307073330,0.21691844,101890.0,101880.0,0.97173339]
[1747307073523,0.21691844,101890.0,101880.0,0.54163899]
[1747307073720,0.21691844,101890.0,101880.0,0.53963899]
[1747307073971,0.21591844,101890.0,101880.0,0.53763899]
[1747307074176,0.21691844,101890.0,101880.0,0.54363899]
[1747307074679,0.21691844,101890.0,101880.0,0.59800289]
[1747307075443,0.31422784,101890.0,101880.0,0.59800289]
[1747307076279,0.52306784,101890.0,101880.0,0.59800289]
[1747307077276,0.52306784,101890.0,101880.0,0.54363899]
[1747307082604,0.52306784,101890.0,101880.0,0.52723899]
[1747307083477,0.52306784,101890.0,101880.0,0.54373899]
[1747307084778,0.52306784,101890.0,101880.0,0.51103899]
[1747307084990,0.52306784,101890.0,101880.0,0.50490527]
[1747307085200,0.52306784,101890.0,101880.0,0.5569658]
[1747307085421,0.31422784,101890.0,101880.0,0.87115857]
[1747307085628,0.23654619,101890.0,101880.0,1.35639439]
[1747307085842,0.001,101890.0,101880.0,1.83298868]
[1747307086072,0.001,101890.0,101880.0,1.83298725]
[1747307086276,0.001,101890.0,101880.0,1.1700924]
[1747307086476,0.001,101890.0,101880.0,1.74549273]
[1747307086693,0.001,101890.0,101880.0,1.74484281]
[1747307086929,0.001,101890.0,101880.0,1.75956693]
[1747307088986,0.001,101890.0,101880.0,1.85687633]
[1747307089218,0.001,101890.0,101880.0,1.87141718]
[1747307089792,1.06059689,101930.0,101920.0,0.22114385]
[1747307090011,0.98131412,101930.0,101920.0,0.6205438]
[1747307090229,0.34070357,101930.0,101920.0,0.6205438]
[1747307090441,0.54221981,101930.0,101920.0,0.64685483]
[1747307090647,0.73843289,101930.0,101920.0,0.6370438]
[1747307090899,0.54222048,101930.0,101920.0,0.64685503]
[1747307091116,0.64112407,101930.0,101920.0,0.6469913]
[1747307091337,0.22564407,101930.0,101920.0,0.6469913]
[1747307091768,0.20602354,101930.0,101920.0,0.61755733]
[1747307092002,0.20602354,101930.0,101920.0,0.12904567]
[1747307092003,0.19621308,101930.0,101920.0,0.12904567]
[1747307092192,0.20021308,101930.0,101920.0,0.03173627]
[1747307092444,0.29752248,101930.0,101920.0,0.00013627]
[1747307092664,0.71256248,101930.0,101920.0,0.00013627]
[1747307093120,0.001,101930.0,101920.0,0.88037037]
[1747307093350,0.001,101930.0,101920.0,0.9686935]
[1747307093594,0.003,101930.0,101920.0,1.44578011]
[1747307093825,0.003,101930.0,101920.0,1.1633123]
[1747307095164,0.002,101930.0,101920.0,1.1633123]
[1747307095614,0.01535,101940.0,101930.0,0.25684387]
[1747307095877,0.01535,101940.0,101930.0,0.82177949]
[1747307096090,0.01535,101940.0,101930.0,0.63662108]
[1747307096813,0.01535,101940.0,101930.0,0.63762108]
[1747307097098,0.03156,101990.0,101940.0,0.34]
[1747307097374,0.03398356,101990.0,101980.0,0.22553324]
[1747307097651,0.00986411,101990.0,101970.0,0.20592587]
[1747307097853,0.00980507,101980.0,101970.0,0.26576357]
[1747307098065,0.20592253,101980.0,101970.0,0.24615084]
[1747307098268,0.20592253,101980.0,101970.0,0.25595764]
[1747307098476,0.20592253,101980.0,101970.0,0.24615103]
[1747307098685,0.19611688,101980.0,101970.0,0.05015119]
[1747307098918,0.19611688,101980.0,101970.0,0.00013627]
[1747307099387,0.19811688,101980.0,101970.0,0.21588588]
[1747307099642,0.21772807,101980.0,101970.0,0.2256923]
[1747307099864,0.21292262,101980.0,101970.0,0.0573806]
[1747307100082,0.31023202,101980.0,101970.0,0.00013627]
[1747307100974,0.39063202,101980.0,101970.0,0.00013627]
[1747307101814,0.1524094,101980.0,101970.0,0.49846527]
[1747307102077,0.37056094,101980.0,101970.0,0.49846527]
[1747307102265,0.22272798,101980.0,101970.0,1.08418529]
[1747307102504,0.22272798,101980.0,101970.0,0.81152409]
[1747307103459,0.03641627,101980.0,101970.0,1.13529832]
[1747307103702,0.007,101980.0,101970.0,1.14510445]
[1747307103943,0.01680517,101980.0,101970.0,1.76757226]
[1747307104169,0.007,101980.0,101970.0,1.48510445]
[1747307104627,0.24233889,101980.0,101970.0,1.47529832]
[1747307104858,0.24233889,101980.0,101970.0,1.45568539]
[1747307104859,0.23053411,101980.0,101970.0,1.45568539]
[1747307105078,0.23053411,101980.0,101970.0,1.17321758]
[1747307105335,0.23053411,101980.0,101970.0,1.18402409]
[1747307105576,0.22553411,101980.0,101970.0,1.19383041]
[1747307105776,0.22553411,101980.0,101970.0,1.19383051]
[1747307105996,0.22553411,101980.0,101970.0,0.93677467]
[1747307106148,0.21572846,101980.0,101970.0,0.93677467]
[1747307106359,0.20592272,101980.0,101970.0,0.49946527]
[1747307106524,0.33433212,101980.0,101970.0,0.49946527]
[1747307112861,0.33945269,101980.0,101970.0,0.49946527]
[1747307113693,0.21572827,101980.0,101970.0,1.00337599]
[1747307113914,6e-05,101990.0,101970.0,0.9780636]
[1747307114122,6e-05,101990.0,101980.0,0.62047408]
[1747307114334,6e-05,101990.0,101980.0,0.60870807]
[1747307114507,6e-05,101990.0,101980.0,0.61851324]
[1747307115716,0.00206,101990.0,101980.0,0.61851324]
[1747307117701,0.00306,101990.0,101980.0,0.61851324]
[1747307117936,0.00306,101990.0,101980.0,0.67575757]
[1747307119952,0.00306,101990.0,101980.0,0.59724538]
[1747307121754,0.01286411,101990.0,101980.0,0.59724538]
[1747307122598,0.02266841,101990.0,101980.0,0.59724538]
[1747307122932,0.02266831,101990.0,101980.0,0.59724538]
[1747307123557,0.0128642,101990.0,101980.0,0.59724538]
[1747307123966,0.00306,101990.0,101980.0,0.67575757]
[1747307124291,0.0128642,101990.0,101980.0,0.67575757]
[1747307124514,0.0128642,101990.0,101980.0,0.59724538]
[1747307125005,0.00306,101990.0,101980.0,0.59724538]
[1747307125216,0.0128642,101990.0,101980.0,0.59724538]
[1747307125345,0.01286411,101990.0,101980.0,0.59724538]
[1747307125547,0.00306,101990.0,101980.0,0.59724538]
[1747307125746,0.01286411,101990.0,101980.0,0.59724538]
[1747307126005,0.02266841,101990.0,101980.0,0.59724538]
[1747307127021,0.01286411,101990.0,101980.0,0.59724538]
[1747307127446,0.00306,101990.0,101980.0,0.67575757]
[1747307127853,0.00306,101990.0,101980.0,1.51562795]
[1747307128094,0.00306,101990.0,101980.0,1.23316014]
[1747307128276,0.00306,101990.0,101980.0,1.45428014]
[1747307128478,0.00206,101990.0,101980.0,1.45428014]
[1747307128603,6e-05,101990.0,101980.0,1.45528014]
[1747307128814,6e-05,101990.0,101980.0,1.23416014]
[1747307129218,6e-05,101990.0,101980.0,0.95069233]
[1747307129410,6e-05,101990.0,101980.0,1.23316014]
[1747307129615,6e-05,101990.0,101980.0,1.24016014]
[1747307130370,6e-05,101990.0,101980.0,0.87918014]
[1747307130568,6e-05,101990.0,101980.0,1.1471071]
[1747307130988,6e-05,101990.0,101980.0,1.1451071]
[1747307131345,6e-05,101990.0,101980.0,1.1481071]
[1747307134562,6e-05,101990.0,101980.0,1.65046014]
[1747307135069,0.00986401,101990.0,101980.0,1.5574071]
[1747307135279,0.01966831,101990.0,101980.0,1.27493929]
[1747307135451,0.21576674,101990.0,101980.0,0.20411688]
[1747307135649,0.0294732,101990.0,101980.0,0.23353324]
[1747307135885,0.0294731,101990.0,101980.0,0.23353324]
[1747307136086,0.03927779,101990.0,101980.0,0.85600105]
[1747307136297,0.25677181,101990.0,101980.0,0.348]
[1747307136467,0.24696722,101990.0,101980.0,0.20411688]
[1747307136649,0.23096722,101990.0,101980.0,0.008]
[1747307136853,0.23096722,101990.0,101980.0,0.21392262]
[1747307137257,0.23096722,101990.0,101980.0,0.22372827]
[1747307138195,0.0294728,101990.0,101980.0,0.94431889]
[1747307138384,0.00986401,101990.0,101980.0,1.04162829]
[1747307138582,0.01966821,101990.0,101980.0,1.05752829]
[1747307138789,0.04908179,101990.0,101980.0,0.68064829]
[1747307138985,0.23537465,101990.0,101980.0,0.67084312]
[1747307139223,0.21576683,101990.0,101980.0,0.20411688]
[1747307139412,0.21576683,101990.0,101980.0,0.21392272]
[1747307139632,0.21576683,101990.0,101980.0,0.22372846]
[1747307139835,0.24197161,101990.0,101980.0,0.24333927]
[1747307139994,0.0098643,101990.0,101980.0,0.35045384]
[1747307140254,6e-05,101990.0,101980.0,0.63292165]
[1747307140423,0.01966831,101990.0,101980.0,0.36665384]
[1747307140623,0.00986401,101990.0,101980.0,0.64912165]
[1747307140827,0.01966831,101990.0,101980.0,0.64912165]
[1747307141544,0.23537523,101990.0,101980.0,0.62311648]
[1747307141761,0.0294728,101990.0,101980.0,0.62311648]
[1747307141978,0.23537601,101990.0,101980.0,0.31123193]
[1747307142339,0.22557171,101990.0,101980.0,0.60350529]
[1747307142552,0.21576683,101990.0,101980.0,0.61331074]
[1747307142771,0.22557171,101990.0,101980.0,0.6231161]
[1747307143385,0.23537649,101990.0,101980.0,0.63292136]
[1747307143816,6e-05,101990.0,101980.0,0.63292088]
[1747307144048,0.0196686,101990.0,101980.0,0.64792088]
[1747307144513,0.0196686,101990.0,101980.0,0.63292088]
[1747307144750,0.21576693,101990.0,101980.0,0.1053094]
[1747307145003,0.21576596,101990.0,101980.0,0.61331093]
[1747307145215,0.23537543,101990.0,101980.0,0.62311629]
[1747307145439,0.01966831,101990.0,101980.0,0.63292146]
[1747307145645,0.0392774,101990.0,101980.0,0.63292146]
[1747307146024,0.0392773,101990.0,101980.0,0.63292146]
[1747307146229,6e-05,101990.0,101980.0,1.08163365]
[1747307146431,6e-05,101990.0,101980.0,1.17894305]
[1747307148427,6e-05,101990.0,101980.0,1.1934839]
[1747307152255,6e-05,101990.0,101980.0,1.00312146]
[1747307152662,0.01966831,101990.0,101980.0,0.97292146]
[1747307153012,0.01966812,101990.0,101980.0,0.97292146]
[1747307153219,0.02947242,101990.0,101980.0,0.97292146]
[1747307153375,6e-05,101990.0,101980.0,1.11557171]
[1747307153556,6e-05,101990.0,101980.0,0.98822146]
[1747307153964,6e-05,101990.0,101980.0,1.10073086]
[1747307155191,6e-05,101990.0,101980.0,0.97292146]
[1747307155415,0.01966851,101990.0,101980.0,0.97292146]
[1747307155587,0.01966831,101990.0,101980.0,0.97292146]
[1747307155788,0.00986411,101990.0,101980.0,0.97292146]
[1747307155993,0.01966841,101990.0,101980.0,0.97292146]
[1747307156327,0.00986411,101990.0,101980.0,0.97292146]
[1747307156532,0.01966851,101990.0,101980.0,0.97292146]
[1747307156737,0.01966841,101990.0,101980.0,0.97292146]
[1747307156997,0.00986411,101990.0,101980.0,0.97292146]
[1747307157723,0.01966841,101990.0,101980.0,0.97292146]
[1747307157956,0.01966841,101990.0,101980.0,0.69045365]
[1747307158204,0.00986411,101990.0,101980.0,0.97292146]
[1747307158604,0.01966851,101990.0,101980.0,0.97292146]
[1747307158810,0.0294731,101990.0,101980.0,0.97292146]
[1747307158983,0.01966851,101990.0,101980.0,0.97292146]
[1747307159859,0.01966851,101990.0,101980.0,0.94350548]
[1747307160067,0.26747563,101990.0,101980.0,0.94350548]
[1747307160276,0.26747553,101990.0,101980.0,0.95331074]
[1747307160506,0.26747553,101990.0,101980.0,0.96311619]
[1747307160704,0.24786702,101990.0,101980.0,0.008]
[1747307161123,0.34517642,101990.0,101980.0,0.008]
[1747307162806,0.34517642,101990.0,101980.0,0.50628]
[1747307163450,0.34517642,101990.0,101980.0,0.84628]
[1747307163658,0.34517642,101990.0,101980.0,0.9435894]
[1747307163859,0.34517642,101990.0,101980.0,0.84628]
[1747307164822,0.34517642,101990.0,101980.0,0.50628]
[1747307168068,0.34517642,101990.0,101980.0,0.50128]
[1747307168293,0.34517642,101990.0,101980.0,0.49828]
[1747307168484,0.34517642,101990.0,101980.0,0.49928]
[1747307168702,0.55505183,101990.0,101980.0,0.87905721]
[1747307169008,0.77317183,101990.0,101980.0,0.87905721]
[1747307169345,0.77317183,101990.0,101980.0,0.49928]
[1747307173874,0.77213183,101990.0,101980.0,0.49928]
[1747307174199,0.75603183,101990.0,101980.0,0.78174781]
[1747307174399,0.31927183,101990.0,101980.0,0.98767053]
[1747307174566,0.31927183,101990.0,101980.0,0.78174781]
[1747307174765,0.31927183,101990.0,101980.0,0.87905721]
[1747307174966,0.33507183,101990.0,101980.0,0.87905721]
[1747307175411,0.33507183,101990.0,101980.0,0.5965894]
[1747307175625,0.31927183,101990.0,101980.0,0.5965894]
[1747307177857,0.30946705,101990.0,101980.0,0.5965894]
[1747307178063,0.32506705,101990.0,101980.0,0.5965894]
[1747307178712,0.32506705,101990.0,101980.0,0.49928]
[1747307182963,0.38397705,101990.0,101980.0,0.49928]
[1747307183167,0.32506705,101990.0,101980.0,0.49928]
[1747307185531,6e-05,101990.0,101980.0,0.74061324]
[1747307185740,0.0196686,101990.0,101980.0,1.03918105]
[1747307185951,0.23537552,101990.0,101980.0,1.11058528]
[1747307186162,0.21576692,101990.0,101980.0,0.5965894]
[1747307186401,0.30327183,101990.0,101980.0,0.5965894]
[1747307187194,0.30327183,101990.0,101980.0,1.07517409]
[1747307187403,0.23537581,101990.0,101980.0,1.11088548]
[1747307187600,0.23537581,101990.0,101980.0,1.10107993]
[1747307187806,0.23537581,101990.0,101980.0,1.11088558]
[1747307188092,0.23537581,101990.0,101980.0,1.10107993]
[1747307188295,0.23537581,101990.0,101980.0,0.89515721]
[1747307188504,0.23537581,101990.0,101980.0,0.90496305]
[1747307188688,0.23537581,101990.0,101980.0,0.91476879]
[1747307189115,0.23537581,101990.0,101980.0,0.90496305]
[1747307189717,0.23537581,101990.0,101980.0,1.10107993]
[1747307190174,0.23537581,101990.0,101980.0,1.08497993]
[1747307190397,0.23537581,101990.0,101980.0,1.07517409]
[1747307190553,6e-05,101990.0,101980.0,1.4923313]
[1747307190954,0.00986401,101990.0,101980.0,1.4923313]
[1747307191168,0.20596166,101990.0,101980.0,1.47272068]
[1747307191364,0.0294727,101990.0,101980.0,1.48252633]
[1747307191610,0.0294727,101990.0,101980.0,1.43378548]
[1747307191611,0.22557035,101990.0,101980.0,1.43378548]
[1747307191936,0.02947347,101990.0,101980.0,1.3560867]
[1747307192112,0.02947347,101990.0,101980.0,1.36589187]
[1747307192550,0.01966869,101990.0,101980.0,1.36589187]
[1747307192767,6e-05,101990.0,101980.0,1.39909187]
[1747307192967,6e-05,101990.0,101980.0,1.51094212]
[1747307193190,6e-05,101990.0,101980.0,1.51394212]
[1747307193385,6e-05,101990.0,101980.0,1.61125152]
[1747307193594,6e-05,101990.0,101980.0,1.61325152]
[1747307195651,6e-05,101990.0,101980.0,1.51594212]
[1747307195909,0.0098642,101990.0,101980.0,1.51594212]
[1747307196474,0.00986401,101990.0,101980.0,1.51594212]
[1747307196682,0.01966821,101990.0,101980.0,1.51594212]
[1747307196896,0.00986401,101990.0,101980.0,1.51594212]
[1747307197115,0.01966812,101990.0,101980.0,1.51594212]
[1747307197317,6e-05,101990.0,101980.0,1.51594212]
[1747307199446,0.0098642,101990.0,101980.0,1.51594212]
[1747307199643,6e-05,101990.0,101980.0,1.51594212]
[1747307200905,6e-05,101990.0,101980.0,1.61325152]
[1747307201458,6e-05,101990.0,101980.0,1.89571933]
[1747307202261,6e-05,101990.0,101980.0,1.90571933]
[1747307204914,6e-05,101990.0,101980.0,2.33367933]
[1747307210638,6e-05,101990.0,101980.0,1.62325152]
[1747307210834,6e-05,101990.0,101980.0,2.05057152]
[1747307211089,0.0156,102030.0,102020.0,0.5556435]
[1747307211239,0.24692216,102030.0,102020.0,0.69959681]
[1747307211644,0.23712161,102030.0,102020.0,0.70954497]
[1747307212130,0.23712161,102030.0,102020.0,0.34]
[1747307212372,0.23760627,102030.0,102020.0,0.34]
[1747307213281,0.24060627,102030.0,102020.0,0.34]
[1747307214263,0.24460627,102030.0,102020.0,0.34]
[1747307214652,0.24176663,102010.0,102000.0,0.20584815]
[1747307214865,0.02940982,102000.0,101990.0,0.50797875]
[1747307215064,0.00980305,102000.0,101990.0,0.84797875]
[1747307215246,0.00980305,102000.0,101990.0,0.8625196]
[1747307216226,0.0196062,102000.0,101990.0,0.8625196]
[1747307216412,0.22548797,102000.0,101990.0,0.67936119]
[1747307216617,0.0196062,102000.0,101990.0,0.961829]
[1747307216990,0.22548797,102000.0,101990.0,0.66955699]
[1747307217257,0.0196062,102000.0,101990.0,0.961829]
[1747307217429,0.0196062,102000.0,101990.0,0.962829]
[1747307217773,0.02940944,102000.0,101990.0,0.97757888]
[1747307217982,0.0196062,102000.0,101990.0,0.98738318]
[1747307218221,0.0196062,102000.0,101990.0,0.99699275]
[1747307218628,0.2352916,102000.0,101990.0,0.67057119]
[1747307218799,0.2674916,102000.0,101990.0,0.68037578]
[1747307219015,0.2674916,102000.0,101990.0,0.69998448]
[1747307219229,0.2674916,102000.0,101990.0,0.67737578]
[1747307219429,0.26749227,102000.0,101990.0,0.66857119]
[1747307219590,0.26849227,102000.0,101990.0,0.68818027]
[1747307219819,0.26849227,102000.0,101990.0,0.64401662]
[1747307220054,0.21668511,102000.0,101990.0,0.9558979]
[1747307220981,0.21668511,102000.0,101990.0,0.955898]
[1747307221414,0.25828874,102000.0,101990.0,0.65382131]
[1747307221798,0.26809256,102000.0,101990.0,0.67343039]
[1747307222265,0.25828874,102000.0,101990.0,0.68323479]
[1747307222451,0.21668511,102000.0,101990.0,0.97492864]
[1747307223125,0.001,102000.0,101990.0,0.97492864]
[1747307223339,0.001,102000.0,101990.0,1.11927889]
[1747307225368,0.001,102000.0,101990.0,1.40116854]
[1747307225611,0.001,102000.0,101990.0,1.51672086]
[1747307228276,0.001,102000.0,101990.0,1.92602086]
[1747307231965,0.001,102000.0,101990.0,1.93214561]
[1747307233330,0.001,102000.0,101990.0,1.92253604]
[1747307235315,0.23570905,102030.0,102020.0,0.57998567]
[1747307235316,0.01648466,102030.0,102020.0,0.57998567]
[1747307235521,0.01648466,102030.0,102020.0,1.01642905]
[1747307235835,0.01648466,102030.0,102020.0,1.0225538]